[Event "1st SOA-GM Festival 2024"]
[Site "Bhubaneswar"]
[Date "2024.02.01"]
[Round "6.18"]
[White "Abhay Bandewar"]
[Black "Laxman, R.R."]
[Result "1/2-1/2"]
[WhiteElo "2025"]
[BlackElo "2338"]
[PlyCount "74"]
[EventDate "2024.02.01"]
[EventType "swiss"]
[EventCountry "IND"]
[TimeControl "5400+30"]

1. d4 {[%emt 0:00:09]} d5 {[%emt 0:00:07]} 2. c4 {[%emt 0:00:10]} e6 {[%emt 0:00:06]} 3. Nf3 {[%emt 0:00:13]} Nf6 {[%emt 0:00:18]} 4. g3 {[%emt 0:00:18]} Bb4+ {[%emt 0:00:07]} 5. Bd2 {[%emt 0:00:05]} Be7 {[%emt 0:00:07]} 6. Bg2 {[%emt 0:00:08]} O-O {[%emt 0:00:10]} 7. O-O {[%emt 0:00:07]} Nbd7 {[%emt 0:00:08]} 8. Qc2 {[%emt 0:00:35]} Ne4 {[%emt 0:00:07]} 9. Bf4 {[%emt 0:06:11]} c6 {[%emt 0:00:12]} 10. h4 {[%emt 0:02:54]} h6 {[%emt 0:00:42]} 11. Ne5 {[%emt 0:08:17]} Nd6 {[%emt 0:03:03]} 12. Nd2 {[%emt 0:10:50]} g5 {[%emt 0:01:17]} 13. hxg5 {[%emt 0:02:36]} hxg5 {[%emt 0:00:02]} 14. Nxd7 {[%emt 0:00:40]} Bxd7 {[%emt 0:00:04]} 15. Bxd6 {[%emt 0:00:57]} Bxd6 {[%emt 0:00:03]} 16. e4 {[%emt 0:00:42]} Kg7 {[%emt 0:05:44]} 17. c5 {[%emt 0:10:37]} Bc7 {[%emt 0:01:47]} 18. e5 {[%emt 0:01:47]} f6 {[%emt 0:05:50]} 19. f4 {[%emt 0:04:56]} fxe5 {[%emt 0:00:24]} 20. fxe5 {[%emt 0:00:51]} Qe7 {[%emt 0:00:05]} 21. b4 {[%emt 0:09:31]} b6 {[%emt 0:02:06]} 22. Rxf8 {[%emt 0:02:02]} Rxf8 {[%emt 0:00:02]} 23. Rf1 {[%emt 0:00:48]} bxc5 {[%emt 0:01:41]} 24. bxc5 {[%emt 0:05:21]} Be8 {[%emt 0:05:45]} 25. Nf3 {[%emt 0:02:47]} Bd8 {[%emt 0:04:31]} 26. Nh2 {[%emt 0:04:20]} Rxf1+ {[%emt 0:02:12]} 27. Bxf1 {[%emt 0:00:43]} Qb7 {[%emt 0:00:36]} 28. a3 {[%emt 0:06:46]} Bg6 {[%emt 0:00:35]} 29. Bd3 {[%emt 0:01:01]} Bxd3 {[%emt 0:01:05]} 30. Qxd3 {[%emt 0:00:04]} Qb5 {[%emt 0:01:07]} 31. Qxb5 {[%emt 0:03:19]} cxb5 {[%emt 0:00:01]} 32. Kf2 {[%emt 0:00:24]} a5 {[%emt 0:00:04]} 33. Ke2 {[%emt 0:01:40]} a4 {[%emt 0:00:05]} 34. Kd3 {[%emt 0:00:47]} Kf7 {[%emt 0:00:05]} 35. g4 {[%emt 0:00:30]} Ba5 {[%emt 0:00:03]} 36. Nf3 {[%emt 0:00:40]} Kg6 {[%emt 0:00:02]} 37. Nd2 {[%emt 0:02:24]} Kf7 {[%emt 0:00:04]} 1/2-1/2

[Event "1st SOA-GM Festival 2024"]
[Site "Bhubaneswar"]
[Date "2024.02.01"]
[Round "6.19"]
[White "Rajesh, V A V"]
[Black "Daaevik Wadhawan"]
[Result "1-0"]
[WhiteElo "2331"]
[BlackElo "1997"]
[PlyCount "95"]
[EventDate "2024.02.01"]
[EventType "swiss"]
[EventCountry "IND"]
[TimeControl "5400+30"]

1. d4 {[%emt 0:00:12]} Nf6 {[%emt 0:00:44]} 2. c4 {[%emt 0:00:06]} g6 {[%emt 0:00:05]} 3. Nc3 {[%emt 0:00:27]} d5 {[%emt 0:00:02]} 4. Nf3 {[%emt 0:00:20]} Bg7 {[%emt 0:00:23]} 5. Qb3 {[%emt 0:00:39]} dxc4 {[%emt 0:00:19]} 6. Qxc4 {[%emt 0:00:06]} O-O {[%emt 0:00:08]} 7. e4 {[%emt 0:00:47]} a6 {[%emt 0:00:11]} 8. e5 {[%emt 0:02:09]} b5 {[%emt 0:07:37]} 9. Qb3 {[%emt 0:00:13]} Nfd7 {[%emt 0:01:24]} 10. e6 {[%emt 0:03:28]} Nb6 {[%emt 0:05:40]} 11. exf7+ {[%emt 0:00:48]} Kh8 {[%emt 0:00:02]} 12. Be3 {[%emt 0:07:53]} Nc6 {[%emt 0:03:45]} 13. Rd1 {[%emt 0:00:08]} Na5 {[%emt 0:04:53]} 14. Qc2 {[%emt 0:02:01]} Nac4 {[%emt 0:04:17]} 15. Ne5 {[%emt 0:02:57]} Nxe3 {[%emt 0:15:01]} 16. fxe3 {[%emt 0:02:27]} Qd6 {[%emt 0:00:10]} 17. Nf3 {[%emt 0:11:37]} Rxf7 {[%emt 0:09:13]} 18. Bd3 {[%emt 0:00:37]} Bg4 {[%emt 0:04:40]} 19. O-O {[%emt 0:00:28]} Bxf3 {[%emt 0:02:59]} 20. gxf3 {[%emt 0:00:04]} e5 {[%emt 0:01:48]} 21. Ne4 {[%emt 0:02:39]} Qe7 {[%emt 0:00:26]} 22. dxe5 {[%emt 0:00:00]} Qxe5 {[%emt 0:01:10]} 23. b3 {[%emt 0:00:29]} Re8 {[%emt 0:08:32]} 24. f4 {[%emt 0:10:10]} Qe6 {[%emt 0:02:00]} 25. Kh1 {[%emt 0:00:23]} Qd5 {[%emt 0:04:12]} 26. Kg1 {[%emt 0:01:14]} Qe6 {[%emt 0:00:38]} 27. Rf3 {[%emt 0:09:13]} Rfe7 {[%emt 0:07:25]} 28. Ng5 {[%emt 0:06:12]} Qf6 {[%emt 0:01:45]} 29. e4 {[%emt 0:01:15]} Qd4+ {[%emt 0:01:21]} 30. Kg2 {[%emt 0:02:31]} Qb4 {[%emt 0:07:35]} 31. Rh3 {[%emt 0:04:46]} Bf6 {[%emt 0:01:19]} 32. Nxh7 {[%emt 0:05:51]} Rxh7 {[%emt 0:01:10]} 33. Rxh7+ {[%emt 0:00:04]} Kxh7 {[%emt 0:00:01]} 34. Qxc7+ {[%emt 0:00:25]} Be7 {[%emt 0:02:29]} 35. Qxb6 {[%emt 0:00:16]} Bc5 {[%emt 0:00:07]} 36. Qc6 {[%emt 0:03:21]} Qd4 {[%emt 0:01:41]} 37. e5 {[%emt 0:01:59]} Qf2+ {[%emt 0:02:35]} 38. Kh1 {[%emt 0:00:07]} Re6 {[%emt 0:00:45]} 39. Qe4 {[%emt 0:00:09]} Kg7 {[%emt 0:00:57]} 40. Rf1 {[%emt 0:04:39]} Qe3 {[%emt 0:00:02]} 41. Qd5 {[%emt 0:01:20]} Re7 {[%emt 0:01:29]} 42. Bb1 {[%emt 0:09:35]} Qe2 {[%emt 0:00:00]} 43. Bd3 {[%emt 0:01:10]} Qe3 {[%emt 0:00:00]} 44. f5 {[%emt 0:01:49]} Rxe5 {[%emt 0:00:31]} 45. Qd7+ {[%emt 0:00:14]} Kh6 {[%emt 0:00:07]} 46. Qf7 {[%emt 0:01:39]} gxf5 {[%emt 0:01:13]} 47. Qf6+ {[%emt 0:00:14]} Kh5 {[%emt 0:00:01]} 48. Bxf5 {[%emt 0:00:42]} 1-0

[Event "1st SOA-GM Festival 2024"]
[Site "Bhubaneswar"]
[Date "2024.02.01"]
[Round "6.20"]
[White "Roneet Das"]
[Black "Frayna, Janelle Mae"]
[Result "1/2-1/2"]
[WhiteElo "2018"]
[BlackElo "2197"]
[PlyCount "64"]
[EventDate "2024.02.01"]
[EventType "swiss"]
[EventCountry "IND"]
[TimeControl "5400+30"]

1. d4 {[%emt 0:00:32]} g6 {[%emt 0:00:17]} 2. e4 {[%emt 0:00:49]} Bg7 {[%emt 0:00:08]} 3. Nf3 {[%emt 0:01:08]} d6 {[%emt 0:01:38]} 4. Bf4 {[%emt 0:00:17]} Nf6 {[%emt 0:02:00]} 5. Nc3 {[%emt 0:08:57]} O-O {[%emt 0:01:47]} 6. h3 {[%emt 0:01:11]} c5 {[%emt 0:01:58]} 7. e5 {[%emt 0:05:56]} Nh5 {[%emt 0:04:11]} 8. Bh2 {[%emt 0:05:35]} cxd4 {[%emt 0:00:24]} 9. Qxd4 {[%emt 0:00:37]} Nc6 {[%emt 0:09:57]} 10. Qe3 {[%emt 0:01:08]} dxe5 {[%emt 0:09:17]} 11. Nxe5 {[%emt 0:01:57]} Nb4 {[%emt 0:07:34]} 12. Rc1 {[%emt 0:05:44]} Nd5 {[%emt 0:02:48]} 13. Qd2 {[%emt 0:14:02]} Nxc3 {[%emt 0:02:25]} 14. Qxc3 {[%emt 0:00:02]} Qd5 {[%emt 0:04:05]} 15. Rd1 {[%emt 0:09:25]} Qe4+ {[%emt 0:00:49]} 16. Qe3 {[%emt 0:01:11]} Qxc2 {[%emt 0:09:00]} 17. Bd3 {[%emt 0:00:08]} Qxb2 {[%emt 0:00:17]} 18. O-O {[%emt 0:00:05]} Be6 {[%emt 0:05:38]} 19. Rb1 {[%emt 0:04:52]} Qc2 {[%emt 0:35:47]} 20. Rfd1 Qb2 {[%emt 0:00:00]} 21. Rf1 {[%emt 0:01:00]} Qxa2 {[%emt 0:00:00]} 22. Ra1 {[%emt 0:02:59]} Qd5 {[%emt 0:00:00]} 23. Bc4 {[%emt 0:02:16]} Qd8 {[%emt 0:00:00]} 24. Bxe6 {[%emt 0:00:37]} fxe6 {[%emt 0:00:00]} 25. Rxa7 {[%emt 0:32:32]} Qd5 {[%emt 0:00:00]} 26. Nf3 {[%emt 0:00:00]} Bd4 {[%emt 0:00:00]} 27. Nxd4 {[%emt 0:00:00]} Rxa7 {[%emt 0:00:00]} 28. Nxe6 {[%emt 0:00:00]} Ra6 {[%emt 0:00:00]} 29. Nc7 {[%emt 0:00:00]} Qf7 {[%emt 0:05:00]} 30. Nxa6 {[%emt 0:00:00]} bxa6 {[%emt 0:00:00]} 31. Kh1 {[%emt 0:00:00]} Nf4 {[%emt 0:00:00]} 32. Kg1 {[%emt 0:00:00]} a5 {[%emt 0:00:00]} 1/2-1/2

[Event "1st SOA-GM Festival 2024"]
[Site "Bhubaneswar"]
[Date "2024.02.01"]
[Round "7.1"]
[White "Tahbaz, Arash"]
[Black "Vignesh Advaith Vemula"]
[Result "1/2-1/2"]
[ECO "E18"]
[WhiteElo "2425"]
[BlackElo "2028"]
[Annotator "ChessBase"]
[PlyCount "60"]
[EventDate "2024.02.01"]
[EventType "swiss"]
[EventCountry "IND"]
[SourceTitle "playchess.com"]
[Source "ChessBase"]
[SourceQuality "1"]
[TimeControl "5400+30"]

1. Nf3 {[%emt 0:00:11]} d5 {[%emt 0:00:06]} 2. g3 {[%emt 0:00:39]} Nf6 {[%emt 0:00:06]} 3. Bg2 {[%emt 0:00:04]} e6 {[%emt 0:00:05]} 4. O-O {[%emt 0:00:03]} Be7 {[%emt 0:00:04]} 5. d4 {[%emt 0:00:12]} O-O {[%emt 0:00:06]} 6. c4 {[%emt 0:00:02]} b6 {[%emt 0:00:06]} 7. cxd5 {[%emt 0:02:01]} exd5 {[%emt 0:00:06]} 8. Nc3 {[%emt 0:00:17]} Na6 {[%emt 0:00:09]} 9. Bf4 {[%emt 0:09:19]} Bb7 {[%emt 0:00:06]} 10. Rc1 {[%emt 0:00:04]} c5 {[%emt 0:00:14]} 11. Ne5 {[%emt 0:00:36]} Nc7 {[%emt 0:00:11]} 12. dxc5 {[%emt 0:03:21]} bxc5 {[%emt 0:00:06]} 13. Qa4 {[%emt 0:00:35]} Ne6 {[%emt 0:00:12]} 14. Rfd1 {[%emt 0:02:25]} a5 {[%emt 0:00:10]} 15. Rd2 {[%emt 0:16:57]} Nxf4 {[%emt 0:18:17]} 16. gxf4 {[%emt 0:08:26]} Rb8 {[%emt 0:00:43]} 17. Nxd5 {[%emt 0:08:17]} Bxd5 {[%emt 0:13:46]} 18. Bxd5 {[%emt 0:01:10]} Nxd5 {[%emt 0:00:15]} 19. Qc4 {[%emt 0:08:39]} Rb4 {[%emt 0:01:56]} 20. Qxd5 {[%emt 0:00:10]} Qxd5 {[%emt 0:00:23]} 21. Rxd5 {[%emt 0:00:08]} Rxb2 {[%emt 0:00:04]} 22. Nc6 {[%emt 0:08:06]} Bf6 {[%emt 0:01:01]} 23. Kf1 {[%emt 0:11:28]} Rxa2 {[%emt 0:02:02]} 24. Rdxc5 {[%emt 0:01:12]} a4 {[%emt 0:00:47]} 25. Ra5 {[%emt 0:00:02]} g6 {[%emt 0:07:34]} 26. Nb4 {[%emt 0:02:19]} Ra3 {[%emt 0:00:06]} 27. Rc4 {[%emt 0:00:36]} Rd8 {[%emt 0:17:05]} 28. Nd5 {[%emt 0:09:04]} Bb2 {[%emt 0:02:53]} 29. Rb4 {[%emt 0:01:19]} Ra1+ {[%emt 0:06:33]} 30. Kg2 {[%emt 0:00:06]} a3 {[%emt 0:02:42]} 1/2-1/2

[Event "1st SOA-GM Festival 2024"]
[Site "Bhubaneswar"]
[Date "2024.02.01"]
[Round "7.2"]
[White "Subhayan Kundu"]
[Black "Soham Kamotra"]
[Result "1/2-1/2"]
[ECO "B12"]
[WhiteElo "2385"]
[BlackElo "2348"]
[Annotator "ChessBase"]
[PlyCount "67"]
[EventDate "2024.02.01"]
[EventType "swiss"]
[EventCountry "IND"]
[SourceTitle "playchess.com"]
[Source "ChessBase"]
[SourceQuality "1"]
[TimeControl "5400+30"]

1. e4 {[%emt 0:04:28]} c6 {[%emt 0:00:04]} 2. d4 {[%emt 0:00:26]} d5 {[%emt 0:00:05]} 3. e5 {[%emt 0:00:07]} c5 {[%emt 0:00:28]} 4. Nf3 {[%emt 0:00:55]} cxd4 {[%emt 0:00:06]} 5. Nxd4 {[%emt 0:00:09]} Nc6 {[%emt 0:00:07]} 6. Nxc6 {[%emt 0:00:21]} bxc6 {[%emt 0:00:02]} 7. Bd3 {[%emt 0:00:23]} e6 {[%emt 0:00:19]} 8. O-O {[%emt 0:00:10]} a5 {[%emt 0:00:07]} 9. Nd2 {[%emt 0:00:52]} Ne7 {[%emt 0:00:18]} 10. Re1 {[%emt 0:01:06]} Ba6 {[%emt 0:00:58]} 11. c4 {[%emt 0:00:29]} Ng6 {[%emt 0:00:36]} 12. Qa4 {[%emt 0:09:53]} Qb6 {[%emt 0:02:10]} 13. Nf3 {[%emt 0:02:22]} Bb4 {[%emt 0:08:06]} 14. Be3 {[%emt 0:04:03]} Qb7 {[%emt 0:00:10]} 15. Rec1 {[%emt 0:05:44]} O-O {[%emt 0:00:50]} 16. Qc2 {[%emt 0:00:38]} Be7 {[%emt 0:02:58]} 17. h4 {[%emt 0:02:14]} f5 {[%emt 0:17:45]} 18. exf6 {[%emt 0:12:07]} Bxf6 {[%emt 0:00:12]} 19. h5 {[%emt 0:02:17]} Ne5 {[%emt 0:00:35]} 20. Bxh7+ {[%emt 0:04:36]} Kh8 {[%emt 0:00:01]} 21. Nxe5 {[%emt 0:14:11]} Bxe5 {[%emt 0:03:33]} 22. Rab1 {[%emt 0:02:34]} Qe7 {[%emt 0:01:30]} 23. g3 {[%emt 0:07:10]} Bxc4 {[%emt 0:00:18]} 24. b3 {[%emt 0:00:55]} d4 {[%emt 0:01:11]} 25. Bd2 {[%emt 0:02:37]} Bd5 {[%emt 0:15:34]} 26. Be4 {[%emt 0:00:15]} Qf7 {[%emt 0:11:25]} 27. f4 {[%emt 0:00:19]} Bd6 {[%emt 0:05:04]} 28. Bxd5 {[%emt 0:09:02]} cxd5 {[%emt 0:00:08]} 29. Qd3 {[%emt 0:00:20]} e5 {[%emt 0:01:41]} 30. Rc6 {[%emt 0:04:43]} Bb4 {[%emt 0:00:24]} 31. h6 {[%emt 0:00:57]} g5 {[%emt 0:01:54]} 32. Re1 {[%emt 0:03:21]} Bxd2 {[%emt 0:02:16]} 33. Qxd2 {[%emt 0:00:07]} gxf4 {[%emt 0:00:07]} 34. Rxe5 {[%emt 0:00:12]} 1/2-1/2

[Event "1st SOA-GM Festival 2024"]
[Site "Bhubaneswar"]
[Date "2024.02.01"]
[Round "7.3"]
[White "Ayush Sharma"]
[Black "Ghosh, Diptayan"]
[Result "1/2-1/2"]
[ECO "C60"]
[WhiteElo "2378"]
[BlackElo "2568"]
[Annotator "ChessBase"]
[PlyCount "60"]
[EventDate "2024.02.01"]
[EventType "swiss"]
[EventCountry "IND"]
[SourceTitle "playchess.com"]
[Source "ChessBase"]
[SourceQuality "1"]
[TimeControl "5400+30"]

1. e4 {[%emt 0:00:04]} e5 {[%emt 0:00:35]} 2. Nf3 {[%emt 0:00:07]} Nc6 {[%emt 0:00:04]} 3. Bb5 {[%emt 0:00:05]} a6 {[%emt 0:00:04]} 4. Ba4 {[%emt 0:00:05]} Nge7 {[%emt 0:00:06]} 5. O-O {[%emt 0:00:20]} Ng6 {[%emt 0:00:04]} 6. d4 {[%emt 0:00:07]} exd4 {[%emt 0:00:09]} 7. Nxd4 {[%emt 0:00:02]} Bc5 {[%emt 0:00:27]} 8. Nf5 {[%emt 0:00:44]} O-O {[%emt 0:00:06]} 9. Be3 {[%emt 0:00:04]} Bxe3 {[%emt 0:00:20]} 10. Nxe3 {[%emt 0:00:03]} b5 {[%emt 0:01:01]} 11. Bb3 {[%emt 0:00:05]} Na5 {[%emt 0:00:05]} 12. Nc3 {[%emt 0:02:57]} Nxb3 {[%emt 0:00:08]} 13. cxb3 {[%emt 0:00:50]} Bb7 {[%emt 0:01:43]} 14. Rc1 {[%emt 0:00:09]} Re8 {[%emt 0:06:13]} 15. Qg4 {[%emt 0:05:00]} d6 {[%emt 0:03:59]} 16. Rfd1 {[%emt 0:01:12]} Rc8 {[%emt 0:05:24]} 17. a4 {[%emt 0:13:06]} h6 {[%emt 0:11:31]} 18. Kh1 {[%emt 0:14:21]} Bc6 {[%emt 0:04:43]} 19. axb5 {[%emt 0:02:32]} axb5 {[%emt 0:00:12]} 20. f3 {[%emt 0:00:40]} Qf6 {[%emt 0:12:48]} 21. Rc2 {[%emt 0:04:00]} Ne7 {[%emt 0:05:18]} 22. Ne2 {[%emt 0:02:29]} Red8 {[%emt 0:01:53]} 23. h4 {[%emt 0:05:53]} Bd7 {[%emt 0:05:09]} 24. Qf4 {[%emt 0:00:28]} Qxf4 {[%emt 0:05:58]} 25. Nxf4 {[%emt 0:00:07]} Be6 {[%emt 0:01:02]} 26. Rd3 {[%emt 0:02:46]} Kf8 {[%emt 0:04:04]} 27. b4 {[%emt 0:01:56]} Ke8 {[%emt 0:01:43]} 28. g4 {[%emt 0:04:20]} c5 {[%emt 0:06:11]} 29. Nh5 {[%emt 0:00:54]} c4 {[%emt 0:02:06]} 30. Nxg7+ {[%emt 0:40:04]} Kf8 {[%emt 0:22:24]} 1/2-1/2

[Event "1st SOA-GM Festival 2024"]
[Site "Bhubaneswar"]
[Date "2024.02.01"]
[Round "7.4"]
[White "Audi Ameya"]
[Black "Das, Sayantan"]
[Result "0-1"]
[ECO "C13"]
[WhiteElo "2385"]
[BlackElo "2514"]
[Annotator "ChessBase"]
[PlyCount "160"]
[EventDate "2024.02.01"]
[EventType "swiss"]
[EventCountry "IND"]
[SourceTitle "playchess.com"]
[Source "ChessBase"]
[SourceQuality "1"]
[TimeControl "5400+30"]

1. e4 {[%emt 0:00:04]} e6 {[%emt 0:00:25]} 2. d4 {[%emt 0:00:06]} d5 {[%emt 0:00:04]} 3. Nc3 {[%emt 0:00:04]} Nf6 {[%emt 0:00:09]} 4. Bg5 {[%emt 0:00:08]} dxe4 {[%emt 0:01:07]} 5. Nxe4 {[%emt 0:00:06]} Be7 {[%emt 0:00:03]} 6. Bxf6 {[%emt 0:00:58]} gxf6 {[%emt 0:00:06]} 7. Qd2 {[%emt 0:00:18]} b6 {[%emt 0:06:14]} 8. O-O-O {[%emt 0:13:18]} Bb7 {[%emt 0:02:41]} 9. Qe3 {[%emt 0:01:22]} f5 {[%emt 0:11:11]} 10. Nc3 {[%emt 0:00:13]} c6 {[%emt 0:02:26]} 11. Nh3 {[%emt 0:01:06]} Nd7 {[%emt 0:01:29]} 12. Be2 {[%emt 0:17:05]} h5 {[%emt 0:07:49]} 13. Nf4 {[%emt 0:01:18]} Bg5 {[%emt 0:10:00]} 14. Kb1 {[%emt 0:03:43]} Qe7 {[%emt 0:05:47]} 15. h4 {[%emt 0:05:27]} Bh6 {[%emt 0:02:22]} 16. Qg3 {[%emt 0:05:33]} O-O-O {[%emt 0:12:21]} 17. Nxh5 {[%emt 0:00:11]} Rhg8 {[%emt 0:03:26]} 18. Qh3 {[%emt 0:02:16]} Nf6 {[%emt 0:02:15]} 19. Nxf6 {[%emt 0:11:53]} Qxf6 {[%emt 0:00:03]} 20. g4 {[%emt 0:00:04]} fxg4 {[%emt 0:02:01]} 21. Bxg4 {[%emt 0:00:04]} Qf4 {[%emt 0:06:16]} 22. Bh5 {[%emt 0:00:03]} c5 {[%emt 0:01:34]} 23. d5 {[%emt 0:03:29]} Kb8 {[%emt 0:01:03]} 24. Qf3 {[%emt 0:01:09]} Qxf3 {[%emt 0:04:58]} 25. Bxf3 {[%emt 0:00:04]} Bg7 {[%emt 0:00:05]} 26. Rh3 {[%emt 0:13:46]} Bxc3 {[%emt 0:03:22]} 27. bxc3 {[%emt 0:00:03]} exd5 {[%emt 0:00:23]} 28. Rg3 {[%emt 0:01:22]} Rh8 {[%emt 0:03:18]} 29. Rg4 {[%emt 0:01:54]} Bc8 {[%emt 0:02:49]} 30. Rf4 {[%emt 0:00:15]} Be6 {[%emt 0:00:07]} 31. h5 {[%emt 0:00:49]} Kc7 {[%emt 0:01:54]} 32. a3 {[%emt 0:04:00]} Kd6 {[%emt 0:03:25]} 33. Re1 {[%emt 0:00:06]} Rdg8 {[%emt 0:00:33]} 34. Kc1 {[%emt 0:15:13]} Rh6 {[%emt 0:00:47]} 35. Kd2 {[%emt 0:00:00]} Rg5 {[%emt 0:00:15]} 36. Re3 {[%emt 0:00:00]} Rg1 {[%emt 0:00:56]} 37. Re1 {[%emt 0:00:00]} Rxe1 {[%emt 0:01:25]} 38. Kxe1 {[%emt 0:00:00]} Ke5 {[%emt 0:04:21]} 39. Rh4 {[%emt 0:00:00]} Kf5 {[%emt 0:00:00]} 40. Rh1 {[%emt 0:00:00]} Kf4 {[%emt 0:00:00]} 41. Ke2 {[%emt 0:00:00]} d4 {[%emt 0:00:00]} 42. Rh4+ {[%emt 0:00:00]} Kg5 {[%emt 0:02:00]} 43. Rh1 {[%emt 0:00:00]} dxc3 {[%emt 0:00:00]} 44. Kd3 {[%emt 0:00:00]} Rf6 {[%emt 0:00:00]} 45. Rg1+ {[%emt 0:00:00]} Kh6 {[%emt 0:00:00]} 46. Rg3 {[%emt 0:00:00]} Rf4 {[%emt 0:00:17]} 47. Kxc3 {[%emt 0:00:00]} b5 {[%emt 0:00:47]} 48. Kb2 {[%emt 0:00:57]} b4 {[%emt 0:00:28]} 49. c3 {[%emt 0:04:00]} b3 {[%emt 0:00:39]} 50. Kc1 {[%emt 0:00:02]} a5 {[%emt 0:00:21]} 51. Kb2 {[%emt 0:00:13]} a4 {[%emt 0:00:17]} 52. Kc1 {[%emt 0:00:04]} Bf5 {[%emt 0:00:15]} 53. Kb2 {[%emt 0:00:28]} Be4 {[%emt 0:00:44]} 54. Bxe4 {[%emt 0:00:03]} Rxe4 {[%emt 0:00:04]} 55. Rf3 {[%emt 0:00:06]} Re2+ {[%emt 0:00:33]} 56. Kb1 {[%emt 0:00:03]} Re1+ {[%emt 0:01:36]} 57. Kb2 {[%emt 0:00:04]} Re2+ {[%emt 0:00:03]} 58. Kb1 {[%emt 0:00:02]} Rc2 {[%emt 0:00:15]} 59. Rf4 {[%emt 0:02:38]} Rxc3 {[%emt 0:00:06]} 60. Rxa4 {[%emt 0:00:02]} c4 {[%emt 0:00:43]} 61. Ra5 {[%emt 0:01:11]} Rd3 {[%emt 0:00:52]} 62. Rb5 {[%emt 0:00:50]} Rd1+ {[%emt 0:00:30]} 63. Kb2 {[%emt 0:00:02]} Rd2+ {[%emt 0:00:05]} 64. Kb1 {[%emt 0:00:52]} Rxf2 {[%emt 0:00:17]} 65. a4 {[%emt 0:00:42]} f5 {[%emt 0:00:27]} 66. a5 {[%emt 0:00:11]} Kxh5 {[%emt 0:00:23]} 67. Rc5 {[%emt 0:00:43]} Kg5 68. Rxc4 Ra2 {[%emt 0:00:59]} 69. Rc5 {[%emt 0:01:15]} Kg4 {[%emt 0:00:09]} 70. Rb5 {[%emt 0:00:48]} f4 {[%emt 0:00:06]} 71. Kc1 {[%emt 0:00:10]} f3 {[%emt 0:00:11]} 72. Rb4+ {[%emt 0:00:11]} Kg3 {[%emt 0:00:46]} 73. Rxb3 {[%emt 0:00:05]} Rxa5 {[%emt 0:00:20]} 74. Kd2 {[%emt 0:00:03]} Re5 {[%emt 0:00:40]} 75. Rb8 {[%emt 0:00:21]} f2 {[%emt 0:00:27]} 76. Rg8+ {[%emt 0:00:03]} Kh2 {[%emt 0:00:06]} 77. Rf8 {[%emt 0:00:03]} Kg1 {[%emt 0:00:06]} 78. Rg8+ {[%emt 0:00:02]} Kf1 {[%emt 0:00:05]} 79. Rg7 {[%emt 0:00:04]} Rd5+ {[%emt 0:00:18]} 80. Kc2 {[%emt 0:00:03]} Ke2 {[%emt 0:00:44]} 0-1

[Event "1st SOA-GM Festival 2024"]
[Site "Bhubaneswar"]
[Date "2024.02.01"]
[Round "7.5"]
[White "Shahil Dey"]
[Black "Savchenko, Boris"]
[Result "1/2-1/2"]
[ECO "A08"]
[WhiteElo "2363"]
[BlackElo "2489"]
[Annotator "ChessBase"]
[PlyCount "97"]
[EventDate "2024.02.01"]
[EventType "swiss"]
[EventCountry "IND"]
[SourceTitle "playchess.com"]
[Source "ChessBase"]
[SourceQuality "1"]
[TimeControl "5400+30"]

1. Nf3 {[%emt 0:01:35]} Nf6 {[%emt 0:01:48]} 2. g3 {[%emt 0:00:04]} c5 {[%emt 0:00:19]} 3. Bg2 {[%emt 0:00:50]} g6 {[%emt 0:08:37]} 4. O-O {[%emt 0:01:48]} d5 {[%emt 0:02:39]} 5. c4 {[%emt 0:04:52]} d4 {[%emt 0:02:13]} 6. b4 {[%emt 0:02:00]} cxb4 {[%emt 0:07:09]} 7. Qa4+ {[%emt 0:15:09]} Bd7 {[%emt 0:11:19]} 8. Qxb4 {[%emt 0:00:36]} Nc6 {[%emt 0:03:59]} 9. Qb3 {[%emt 0:03:19]} Bg7 {[%emt 0:13:39]} 10. Bb2 {[%emt 0:06:44]} Ne4 {[%emt 0:02:55]} 11. d3 {[%emt 0:05:06]} Nc5 {[%emt 0:01:26]} 12. Qa3 {[%emt 0:00:13]} b6 {[%emt 0:15:16]} 13. Nbd2 {[%emt 0:08:03]} e5 {[%emt 0:01:15]} 14. Nb3 {[%emt 0:01:31]} Ne6 {[%emt 0:01:32]} 15. Bc1 {[%emt 0:04:44]} Bf8 {[%emt 0:09:59]} 16. Qb2 {[%emt 0:01:15]} Bg7 {[%emt 0:00:08]} 17. a4 {[%emt 0:08:52]} O-O {[%emt 0:01:50]} 18. Qd2 {[%emt 0:01:51]} Qb8 {[%emt 0:03:06]} 19. Ba3 {[%emt 0:00:41]} Rc8 {[%emt 0:02:21]} 20. Ng5 {[%emt 0:03:59]} Bh6 {[%emt 0:00:33]} 21. f4 {[%emt 0:00:57]} exf4 {[%emt 0:01:08]} 22. Nxe6 {[%emt 0:00:06]} fxe6 {[%emt 0:02:17]} 23. gxf4 {[%emt 0:00:45]} Qc7 {[%emt 0:03:32]} 24. Bxc6 {[%emt 0:04:24]} Bxc6 {[%emt 0:00:08]} 25. Nxd4 {[%emt 0:00:07]} Bb7 {[%emt 0:01:43]} 26. e4 {[%emt 0:01:37]} e5 {[%emt 0:00:29]} 27. Nb5 {[%emt 0:00:53]} Qd7 {[%emt 0:00:16]} 28. Nd6 {[%emt 0:16:52]} Rf8 {[%emt 0:00:07]} 29. Qe2 {[%emt 0:05:03]} Rxf4 {[%emt 0:01:57]} 30. Rxf4 {[%emt 0:00:13]} Bxf4 {[%emt 0:00:18]} 31. Rf1 {[%emt 0:01:11]} h5 {[%emt 0:01:27]} 32. Nxb7 {[%emt 0:00:23]} Qxb7 {[%emt 0:00:08]} 33. Bc1 {[%emt 0:00:03]} Bxc1 {[%emt 0:00:41]} 34. Rxc1 {[%emt 0:00:02]} Qd7 {[%emt 0:00:20]} 35. a5 {[%emt 0:01:08]} Rf8 {[%emt 0:00:54]} 36. axb6 {[%emt 0:00:36]} axb6 {[%emt 0:00:28]} 37. Rf1 {[%emt 0:00:13]} Rxf1+ {[%emt 0:00:32]} 38. Kxf1 {[%emt 0:00:30]} Kg7 {[%emt 0:00:26]} 39. Qe3 {[%emt 0:00:52]} Qd6 {[%emt 0:00:20]} 40. Ke2 {[%emt 0:00:26]} Qf6 {[%emt 0:00:42]} 41. c5 {[%emt 0:00:34]} bxc5 {[%emt 0:00:32]} 42. Qxc5 {[%emt 0:00:05]} g5 {[%emt 0:00:13]} 43. d4 {[%emt 0:01:01]} exd4 {[%emt 0:00:09]} 44. e5 {[%emt 0:00:03]} Qa6+ {[%emt 0:00:35]} 45. Kd2 {[%emt 0:00:39]} h4 {[%emt 0:00:50]} 46. Qxd4 {[%emt 0:00:59]} Qa2+ {[%emt 0:00:06]} 47. Ke3 {[%emt 0:00:08]} Qxh2 {[%emt 0:01:07]} 48. Qd7+ {[%emt 0:00:49]} Kh6 {[%emt 0:00:07]} 49. Qe6+ {[%emt 0:00:05]} 1/2-1/2